Workbook

Sheet 2.1
C2: Εφαρμογή 2.1: Χαρακτηριστική καμπύλη I - V φωτοβολταικού κελιού
C5: Input
C7: R_s | D7: 0.005 | E7: Ω | G7: Set desired parameters and press CTRL + A
C8: R_sh | D8: 6.6 | E8: Ω
C9: A_cell | D9: 150 | E9: cm^2
C10: I_o | D10: =10^-10 -> 1e-10 | E10: A
C11: J_ph_stc | D11: =1.369*10^17 -> 1.369e+17 | E11: (1/s)*(1/cm^2)
C12: qe | D12: =1.6*10^-19 -> 1.6e-19 | E12: C
C13: k | D13: =1.38*10^-23 -> 1.38e-23 | E13: J/K
C14: T_stc | D14: 298 | E14: K
C15: G_stc | D15: 1000 | E15: W/m^2
C16: I(J_ph) | D16: =D11*D12*D9 -> 3.2856 | E16: A
C19: Output
A21: F | C21: V (Volts) | D21: I (A) | E21: P (W) | G21: V_max | H21: =INDEX($C$22:$C$122,MATCH(MAX($E$22:$E$122),$E$22:$E$122,0),1) -> 0.53 | I21: V
A22: =$D22-($D$16-$D$10*(EXP($D$12*(($C22+$D22*$D$7)/($D$13*$D$14)))-1)-($C22+$D22*$D$7)/$D$8) -> 9.999988575e-07 | C22: 0 | D22: 3.283113792 | E22: =D22*C22 -> 0 | G22: I_max | H22: =INDEX($D$22:$D$122,MATCH(MAX($E$22:$E$122),$E$22:$E$122,0),1) -> 3.039978454 | I22: A
A23: =$D23-($D$16-$D$10*(EXP($D$12*(($C23+$D23*$D$7)/($D$13*$D$14)))-1)-($C23+$D23*$D$7)/$D$8) -> 9.999983441e-07 | C23: =C22+0.01 -> 0.01 | D23: 3.281599788 | E23: =D23*C23 -> 0.03281599788 | G23: P_max | H23: =MAX(E22:E122) -> 1.611188581 | I23: W
A24: =$D24-($D$16-$D$10*(EXP($D$12*(($C24+$D24*$D$7)/($D$13*$D$14)))-1)-($C24+$D24*$D$7)/$D$8) -> 9.999976012e-07 | C24: =C23+0.01 -> 0.02 | D24: 3.280085783 | E24: 0.06560171566 | G24: η | H24: =H23/((D9/10^4)*D15) -> 0.107412572
A25: 9.99996526e-07 | C25: 0.03 | D25: 3.278571778 | E25: =D25*C25 -> 0.09835715335
A26: 9.999949708e-07 | C26: 0.04 | D26: 3.277057774 | E26: =D26*C26 -> 0.1310823109
A27: =$D27-($D$16-$D$10*(EXP($D$12*(($C27+$D27*$D$7)/($D$13*$D$14)))-1)-($C27+$D27*$D$7)/$D$8) -> 9.999927215e-07 | C27: 0.05 | D27: 3.275543769 | E27: 0.1637771884
A28: 9.999894699e-07 | C28: 0.06 | D28: 3.274029763 | E28: 0.1964417858
A29: 9.999847741e-07 | C29: 0.07 | D29: 3.272515758 | E29: 0.2290761031
A30: 9.999779933e-07 | C30: 0.08 | D30: 3.271001752 | E30: 0.2616801402
A31: 9.99968206e-07 | C31: 0.09 | D31: 3.269487746 | E31: 0.2942538971
A32: 9.999540906e-07 | C32: 0.1 | D32: 3.267973738 | E32: 0.3267973738
A33: 9.999337385e-07 | C33: 0.11 | D33: 3.266459729 | E33: 0.3593105702
A34: 9.999044148e-07 | C34: 0.12 | D34: 3.264945718 | E34: 0.3917934862
A35: 9.998621882e-07 | C35: 0.13 | D35: 3.263431704 | E35: 0.4242461215
A36: 9.998014212e-07 | C36: 0.14 | D36: 3.261917685 | E36: 0.4566684759
A37: 9.997140293e-07 | C37: 0.15 | D37: 3.26040366 | E37: 0.489060549
A38: 9.995884378e-07 | C38: 0.16 | D38: 3.258889624 | E38: 0.5214223399
A39: 9.994080816e-07 | C39: 0.17 | D39: 3.257375574 | E39: 0.5537538477
A40: 9.991492811e-07 | C40: 0.18 | D40: 3.255861503 | E40: 0.5860550705
A41: 9.987782268e-07 | C41: 0.19 | D41: 3.2543474 | E41: 0.6183260059
A42: 9.982466946e-07 | C42: 0.2 | D42: 3.252833249 | E42: 0.6505666499
A43: 9.974859911e-07 | C43: =C42+0.01 -> 0.21 | D43: 3.25131903 | E43: 0.6827769963
A44: 9.963983878e-07 | C44: 0.22 | D44: 3.249804708 | E44: 0.7149570358
A45: 9.948450561e-07 | C45: 0.23 | D45: 3.248290236 | E45: 0.7471067543
A46: 9.926290843e-07 | C46: 0.24 | D46: 3.246775542 | E46: 0.7792261301
A47: 9.894716557e-07 | C47: 0.25 | D47: 3.24526052 | E47: 0.8113151301
A48: 9.849787181e-07 | C48: 0.26 | D48: 3.243745015 | E48: 0.8433737039
A49: 9.785945183e-07 | C49: 0.27 | D49: 3.242228797 | E49: 0.8754017753
A50: 9.695370764e-07 | C50: 0.28 | D50: 3.240711528 | E50: 0.9073992279
A51: 9.567090213e-07 | C51: 0.29 | D51: 3.239192708 | E51: 0.9393658854
A52: 9.385751185e-07 | C52: 0.3 | D52: 3.237671601 | E52: 0.9713014804
A53: 9.129953744e-07 | C53: 0.31 | D53: 3.236147121 | E53: 1.003205607
A54: 8.769999664e-07 | C54: 0.32 | D54: 3.234617664 | E54: 1.035077652
A55: 8.264902394e-07 | C55: 0.33 | D55: 3.233080867 | E55: 1.066916686
A56: 7.558502229e-07 | C56: 0.34 | D56: 3.231533245 | E56: 1.098721303
A57: 6.57459668e-07 | C57: 0.35 | D57: 3.229969654 | E57: 1.130489379
A58: 5.211211795e-07 | C58: =C57+0.01 -> 0.36 | D58: 3.228382513 | E58: 1.162217705
A59: 3.334699255e-07 | C59: 0.37 | D59: 3.226760637 | E59: 1.193901436
A60: 7.756598785e-08 | C60: 0.38 | D60: 3.225087533 | E60: 1.225533263
A61: -2.668337369e-07 | C61: 0.39 | D61: 3.223338881 | E61: 1.257102163
A62: -7.211727304e-07 | C62: 0.4 | D62: 3.221478824 | E62: 1.288591529
A63: 1.864677301e-10 | C63: 0.41 | D63: 3.219455808 | E63: 1.319976881
A64: 4.229114836e-10 | C64: 0.42 | D64: 3.217190048 | E64: 1.35121982
A65: 8.579998934e-10 | C65: 0.43 | D65: 3.214567477 | E65: 1.382264015
A66: 1.53553037e-09 | C66: 0.44 | D66: 3.211419023 | E66: 1.41302437
A67: 2.172112712e-09 | C67: 0.45 | D67: 3.207495822 | E67: 1.44337312
A68: 1.014872186e-09 | C68: 0.46 | D68: 3.202431959 | E68: 1.473118701
A69: -9.158062255e-07 | C69: 0.47 | D69: 3.195689325 | E69: 1.501973983
A70: 1.677872685e-08 | C70: 0.48 | D70: 3.186483812 | E70: 1.52951223
A71: 7.59349934e-08 | C71: 0.49 | D71: 3.173663983 | E71: 1.555095352
A72: 2.796973511e-07 | C72: 0.5 | D72: 3.155562039 | E72: 1.57778102
A73: 9.413388455e-07 | C73: 0.51 | D73: 3.129771169 | E73: 1.596183296
A74: -2.906846186e-08 | C74: 0.52 | D74: 3.092853155 | E74: 1.608283641
A75: -1.269758725e-07 | C75: 0.53 | D75: 3.039978454 | E75: 1.611188581
A76: -5.219925221e-07 | C76: 0.54 | D76: 2.964495726 | E76: 1.600827692
A77: 5.418028914e-08 | C77: 0.55 | D77: 2.857528411 | E77: 1.571640626
A78: 2.478651577e-07 | C78: =C77+0.01 -> 0.56 | D78: 2.707717139 | E78: 1.516321598
A79: 9.140009944e-07 | C79: 0.57 | D79: 2.501354036 | E79: 1.4257718
A80: -1.393283817e-07 | C80: 0.58 | D80: 2.223140035 | E80: 1.28942122
A81: -1.819825384e-07 | C81: =C80+0.01 -> 0.59 | D81: 1.857702514 | E81: 1.096044483
A82: -7.638060096e-08 | C82: 0.6 | D82: 1.391630334 | E82: 0.8349782004
A83: 6.417924636e-08 | C83: 0.61 | D83: 0.8154552878 | E83: 0.4974277256
A84: 9.722601964e-07 | C84: 0.62 | D84: 0.1248575098 | E84: 0.0774116561
A85: =$D85-($D$16-$D$10*(EXP($D$12*(($C85+$D85*$D$7)/($D$13*$D$14)))-1)-($C85+$D85*$D$7)/$D$8) -> 1.226512918 | C85: 0.63 | D85: 0 | E85: =D85*C85 -> 0
A86: 3.328607245 | C86: 0.64 | D86: 0 | E86: 0
A87: =$D87-($D$16-$D$10*(EXP($D$12*(($C87+$D87*$D$7)/($D$13*$D$14)))-1)-($C87+$D87*$D$7)/$D$8) -> 6.429744853 | C87: 0.65 | D87: 0 | E87: =D87*C87 -> 0
A88: 11.00507445 | C88: =C87+0.01 -> 0.66 | D88: 0 | E88: 0
A89: 17.75572723 | C89: 0.67 | D89: 0 | E89: 0
A90: 27.71629502 | C90: 0.68 | D90: 0 | E90: 0
A91: 42.41342534 | C91: 0.69 | D91: 0 | E91: 0
A92: 64.09984497 | C92: 0.7 | D92: 0 | E92: 0
A93: 96.09968597 | C93: 0.71 | D93: 0 | E93: 0
A94: 143.3180499 | C94: 0.72 | D94: 0 | E94: 0
A95: 212.9929231 | C95: 0.73 | D95: 0 | E95: 0
A96: 315.8047049 | C96: 0.74 | D96: 0 | E96: 0
A97: 467.5134325 | C97: 0.75 | D97: 0 | E97: 0
A98: 691.3746755 | C98: 0.76 | D98: 0 | E98: 0
A99: 1021.704439 | C99: 0.77 | D99: 0 | E99: 0
A100: 1509.139548 | C100: 0.78 | D100: 0 | E100: 0
A101: 2228.39989 | C101: 0.79 | D101: 0 | E101: 0
A102: 3289.74241 | C102: 0.8 | D102: 0 | E102: 0
A103: 4855.862666 | C103: 0.81 | D103: 0 | E103: 0
A104: 7166.834828 | C104: 0.82 | D104: 0 | E104: 0
A105: 10576.91324 | C105: 0.83 | D105: 0 | E105: 0
A106: 15608.83693 | C106: 0.84 | D106: 0 | E106: 0
A107: 23033.96155 | C107: 0.85 | D107: 0 | E107: 0
A108: 33990.50237 | C108: 0.86 | D108: 0 | E108: 0
A109: 50158.01411 | C109: 0.87 | D109: 0 | E109: 0
A110: 74014.85395 | C110: 0.88 | D110: 0 | E110: 0
A111: 109218.095 | C111: 0.89 | D111: 0 | E111: 0
A112: 161164.1278 | C112: 0.9 | D112: 0 | E112: 0
A113: 237815.8867 | C113: 0.91 | D113: 0 | E113: 0
A114: 350923.507 | C114: 0.92 | D114: 0 | E114: 0
A115: 517825.532 | C115: 0.93 | D115: 0 | E115: 0
A116: 764106.7813 | C116: 0.94 | D116: 0 | E116: 0
A117: 1127520.309 | C117: 0.95 | D117: 0 | E117: 0
A118: 1663774.665 | C118: 0.96 | D118: 0 | E118: 0
A119: 2455073.588 | C119: 0.97 | D119: 0 | E119: 0
A120: 3622717.227 | C120: 0.98 | D120: 0 | E120: 0
A121: 5345696.53 | C121: 0.99 | D121: 0 | E121: 0
A122: 7888131.207 | C122: 1 | D122: 0 | E122: 0

Sheet 2.2
D2: Εφαρμογή 2.2: Χαρακτηριστική καμπύλη φωτοβολταικού πλαισίου
D5: Input
D7: R_s | E7: 0.005 | F7: Ω
D8: R_sh | E8: 6.6 | F8: Ω
D9: A_cell | E9: 150 | F9: cm^2
D10: I_o | E10: =10^-10 -> 1e-10 | F10: A
D11: J_ph_stc | E11: =1.369*10^17 -> 1.369e+17 | F11: (1/s)*(1/cm^2)
D12: qe | E12: =1.6*10^-19 -> 1.6e-19 | F12: C
D13: k | E13: =1.38*10^-23 -> 1.38e-23 | F13: J/K
D14: T_stc | E14: 298 | F14: K
D15: G_stc | E15: 1000 | F15: W/m^2
D16: N_s | E16: 20
D17: N_p | E17: 2 | I17: Set desired parameters and press CTRL + B
D18: I(J_ph) | E18: =$E$11*$E$12*$E$9 -> 3.2856 | F18: A
D21: Output
B23: F | D23: V_panel (Volts) | E23: I_panel(A) | F23: P_panel (W) | I23: V_max | J23: =INDEX($D$24:$D$124,MATCH(MAX($F$24:$F$124),$F$24:$F$124,0),0) -> 10.6 | K23: V
A24: =AND(E24>0,E25=0) -> FALSE | B24: =$E24-$E$17*($E$18-$E$10*(EXP($E$12*(($D24/$E$16)+($E24/$E$17)*$E$7)/($E$13*$E$14))-1)-(($D24/$E$16)+($E24/$E$17)*$E$7)/$E$8) -> 6.571197716e-06 | D24: 0 | E24: 6.566232153 | F24: =E24*D24 -> 0 | I24: I_max | J24: =INDEX($E$24:$E$124,MATCH(MAX($F$24:$F$124),$F$24:$F$124,0),0) -> 6.079956909 | K24: A
A25: =AND(E25>0,E26=0) -> FALSE | B25: =$E25-$E$17*($E$18-$E$10*(EXP($E$12*(($D25/$E$16)+($E25/$E$17)*$E$7)/($E$13*$E$14))-1)-(($D25/$E$16)+($E25/$E$17)*$E$7)/$E$8) -> 6.568166386e-06 | D25: 0.2 | E25: 6.56320414 | F25: =E25*D25 -> 1.312640828 | I25: P_max | J25: =MAX($F$24:$F$124) -> 64.44754323 | K25: W
A26: FALSE | B26: 6.565134597e-06 | D26: 0.4 | E26: 6.560176128 | F26: =E26*D26 -> 2.624070451 | I26: I_sc | J26: =E24 -> 6.566232153 | K26: A
A27: FALSE | B27: 6.562102142e-06 | D27: 0.6 | E27: 6.557148116 | F27: 3.934288869 | I27: V_oc | J27: =IFERROR(INDEX(D24:D124,MATCH(TRUE,A24:A124,0),1),"") -> 12.4 | K27: V
A28: FALSE | B28: 6.559068727e-06 | D28: 0.8 | E28: 6.554120103 | F28: 5.243296082 | I28: A_panel | J28: =$E$16*$E$17*($E$9)/10^4 -> 0.6 | K28: m^2
A29: FALSE | B29: 6.556033928e-06 | D29: 1 | E29: 6.55109209 | F29: 6.55109209
A30: FALSE | B30: 6.55299712e-06 | D30: 1.2 | E30: 6.548064077 | F30: 7.857676892
A31: FALSE | B31: 6.549957424e-06 | D31: 1.4 | E31: 6.545036063 | F31: 9.163050488
A32: FALSE | B32: 6.546913556e-06 | D32: 1.6 | E32: 6.542008048 | F32: 10.46721288
A33: FALSE | B33: 6.543863678e-06 | D33: 1.8 | E33: 6.538980032 | F33: 11.77016406
A34: FALSE | B34: 6.540805139e-06 | D34: 2 | E34: 6.535952013 | F34: 13.07190403
A35: FALSE | B35: 6.537734126e-06 | D35: 2.2 | E35: 6.532923992 | F35: 14.37243278
A36: FALSE | B36: 6.534645165e-06 | D36: 2.4 | E36: 6.529895967 | F36: 15.67175032
A37: FALSE | B37: 6.531530397e-06 | D37: 2.6 | E37: 6.526867936 | F37: 16.96985663
A38: FALSE | B38: 6.528378539e-06 | D38: 2.8 | E38: 6.523839896 | F38: 18.26675171
A39: FALSE | B39: 6.525173424e-06 | D39: 3 | E39: 6.520811842 | F39: 19.56243553
A40: FALSE | B40: 6.521891894e-06 | D40: 3.2 | E40: 6.517783768 | F40: 20.85690806
A41: FALSE | B41: 6.518500817e-06 | D41: 3.4 | E41: 6.514755665 | F41: 22.15016926
A42: FALSE | B42: 6.514952819e-06 | D42: 3.6 | E42: 6.511727519 | F42: 23.44221907
A43: FALSE | B43: 6.511180271e-06 | D43: 3.8 | E43: 6.508699309 | F43: 24.73305738
A44: FALSE | B44: 6.507086704e-06 | D44: 4 | E44: 6.505671006 | F44: 26.02268402
A45: FALSE | B45: 6.502534694e-06 | D45: 4.2 | E45: 6.502642564 | F45: 27.31109877
A46: FALSE | B46: 6.497328745e-06 | D46: 4.4 | E46: 6.499613918 | F46: 28.59830124
A47: FALSE | B47: 6.491191129e-06 | D47: 4.6 | E47: 6.496584971 | F47: 29.88429086
A48: FALSE | B48: 6.483727925e-06 | D48: 4.8 | E48: 6.493555579 | F48: 31.16906678
A49: =AND(E49>0,E50=0) -> FALSE | B49: 6.474381352e-06 | D49: 5 | E49: 6.490525532 | F49: 32.45262766
A50: FALSE | B50: 6.462363086e-06 | D50: 5.2 | E50: 6.487494519 | F50: 33.7349715
A51: FALSE | B51: 6.446561309e-06 | D51: 5.4 | E51: 6.484462081 | F51: 35.01609524
A52: FALSE | B52: 6.42541158e-06 | D52: 5.6 | E52: 6.481427539 | F52: 36.29599422
A53: FALSE | B53: 6.396718464e-06 | D53: 5.8 | E53: 6.478389897 | F53: 37.5746614
A54: FALSE | B54: 6.357410468e-06 | D54: 6 | E54: 6.47534768 | F54: 38.85208608
A55: FALSE | B55: 6.303206084e-06 | D55: 6.2 | E55: 6.472298715 | F55: 40.12825203
A56: FALSE | B56: 6.228163434e-06 | D56: 6.4 | E56: 6.469239798 | F56: 41.40313471
A57: FALSE | B57: 6.124081902e-06 | D57: 6.6 | E57: 6.466166202 | F57: 42.67669693
A58: FALSE | B58: 5.979724678e-06 | D58: 6.8 | E58: 6.463070954 | F58: 43.94888249
A59: FALSE | B59: 5.779844076e-06 | D59: 7 | E59: 6.45994377 | F59: 45.21960639
A60: FALSE | B60: 5.504034704e-06 | D60: 7.2 | E60: 6.456769485 | F60: 46.48874029
A61: FALSE | B61: 5.125551232e-06 | D61: 7.4 | E61: 6.45352573 | F61: 47.7560904
A62: FALSE | B62: 4.610490739e-06 | D62: 7.6 | E62: 6.450179518 | F62: 49.02136434
A63: FALSE | B63: 3.918332932e-06 | D63: 7.8 | E63: 6.446682209 | F63: 50.28412123
A64: FALSE | B64: 3.00614055e-06 | D64: 8 | E64: 6.442962091 | F64: 51.54369673
A65: FALSE | B65: 1.841577046e-06 | D65: 8.2 | E65: 6.438913455 | F65: 52.79909033
A66: FALSE | B66: 4.360931554e-07 | D66: 8.4 | E66: 6.43438053 | F66: 54.04879645
A67: FALSE | B67: -1.076953104e-06 | D67: 8.6 | E67: 6.429133877 | F67: 55.29055134
A68: FALSE | B68: -2.265448222e-06 | D68: 8.8 | E68: 6.422835781 | F68: 56.52095487
A69: FALSE | B69: -2.006299254e-06 | D69: 9 | E69: 6.414989639 | F69: 57.73490675
A70: FALSE | B70: 2.374974581e-06 | D70: 9.2 | E70: 6.404866284 | F70: 58.92476981
A71: FALSE | B71: 2.58162852e-06 | D71: 9.4 | E71: 6.391383046 | F71: 60.07900064
A72: FALSE | B72: 2.410126321e-08 | D72: 9.6 | E72: 6.372967614 | F72: 61.1804891
A73: FALSE | B73: 1.380530392e-07 | D73: 9.8 | E73: 6.347327953 | F73: 62.20381394
A74: FALSE | B74: 5.392815998e-07 | D74: 10 | E74: 6.311124059 | F74: 63.11124059
A75: FALSE | B75: 1.853577016e-06 | D75: 10.2 | E75: 6.25954231 | F75: 63.84733156
A76: FALSE | B76: 5.955674641e-06 | D76: 10.4 | E76: 6.185712191 | F76: 64.33140679
A77: FALSE | B77: -2.531342949e-07 | D77: 10.6 | E77: 6.079956909 | F77: 64.44754323
A78: FALSE | B78: -1.042365825e-06 | D78: 10.8 | E78: 5.928991454 | F78: 64.03310771
A79: FALSE | B79: -3.958649888e-06 | D79: 11 | E79: 5.715053012 | F79: 62.86558313
A80: FALSE | B80: 4.95536864e-07 | D80: 11.2 | E80: 5.415434277 | F80: 60.6528639
A81: FALSE | B81: 1.827607453e-06 | D81: 11.4 | E81: 5.002708071 | F81: 57.03087201
A82: FALSE | B82: 4.711052862e-06 | D82: 11.6 | E82: 4.446284263 | F82: 51.57689745
A83: FALSE | B83: -3.63916099e-07 | D83: 11.8 | E83: 3.715405028 | F83: 43.84177933
A84: FALSE | B84: 2.329671135e-06 | D84: 12 | E84: 2.783262505 | F84: 33.39915006
A85: FALSE | B85: 1.283216289e-07 | D85: 12.2 | E85: 1.630910576 | F85: 19.89710902
A86: =AND(E86>0,E87=0) -> TRUE | B86: -1.771561833e-08 | D86: 12.4 | E86: 0.2497137912 | F86: 3.096451011
A87: =AND(E87>0,E88=0) -> FALSE | B87: 2.453025835 | D87: 12.6 | E87: 0 | F87: 0
A88: FALSE | B88: 6.657214489 | D88: 12.8 | E88: 0 | F88: 0
A89: =AND(E89>0,E90=0) -> FALSE | B89: =$E89-$E$17*($E$18-$E$10*(EXP($E$12*(($D89/$E$16)+($E89/$E$17)*$E$7)/($E$13*$E$14))-1)-(($D89/$E$16)+($E89/$E$17)*$E$7)/$E$8) -> 12.85948971 | D89: 13 | E89: 0 | F89: =E89*D89 -> 0
A90: FALSE | B90: 22.0101489 | D90: 13.2 | E90: 0 | F90: 0
A91: FALSE | B91: 35.51145446 | D91: 13.4 | E91: 0 | F91: 0
A92: FALSE | B92: 55.43259003 | D92: 13.6 | E92: 0 | F92: 0
A93: FALSE | B93: 84.82685067 | D93: 13.8 | E93: 0 | F93: 0
A94: FALSE | B94: 128.1996899 | D94: 14 | E94: 0 | F94: 0
A95: FALSE | B95: 192.1993719 | D95: 14.2 | E95: 0 | F95: 0
A96: FALSE | B96: 286.6360999 | D96: 14.4 | E96: 0 | F96: 0
A97: FALSE | B97: 425.9858462 | D97: 14.6 | E97: 0 | F97: 0
A98: FALSE | B98: 631.6094098 | D98: 14.8 | E98: 0 | F98: 0
A99: FALSE | B99: 935.026865 | D99: 15 | E99: 0 | F99: 0
A100: FALSE | B100: 1382.749351 | D100: 15.2 | E100: 0 | F100: 0
A101: FALSE | B101: 2043.408878 | D101: 15.4 | E101: 0 | F101: 0
A102: FALSE | B102: 3018.279096 | D102: 15.6 | E102: 0 | F102: 0
A103: FALSE | B103: 4456.799781 | D103: 15.8 | E103: 0 | F103: 0
A104: FALSE | B104: 6579.48482 | D104: 16 | E104: 0 | F104: 0
A105: FALSE | B105: 9711.725331 | D105: 16.2 | E105: 0 | F105: 0
A106: FALSE | B106: 14333.66966 | D106: 16.4 | E106: 0 | F106: 0
A107: FALSE | B107: 21153.82648 | D107: 16.6 | E107: 0 | F107: 0
A108: FALSE | B108: 31217.67386 | D108: 16.8 | E108: 0 | F108: 0
A109: FALSE | B109: 46067.92309 | D109: 17 | E109: 0 | F109: 0
A110: FALSE | B110: 67981.00475 | D110: 17.2 | E110: 0 | F110: 0
A111: FALSE | B111: 100316.0282 | D111: 17.4 | E111: 0 | F111: 0
A112: FALSE | B112: 148029.7079 | D112: 17.6 | E112: 0 | F112: 0
A113: FALSE | B113: 218436.1899 | D113: 17.8 | E113: 0 | F113: 0
A114: FALSE | B114: 322328.2556 | D114: 18 | E114: 0 | F114: 0
A115: FALSE | B115: 475631.7734 | D115: 18.2 | E115: 0 | F115: 0
A116: FALSE | B116: 701847.0139 | D116: 18.4 | E116: 0 | F116: 0
A117: FALSE | B117: 1035651.064 | D117: 18.6 | E117: 0 | F117: 0
A118: FALSE | B118: 1528213.563 | D118: 18.8 | E118: 0 | F118: 0
A119: FALSE | B119: 2255040.619 | D119: 19 | E119: 0 | F119: 0
A120: FALSE | B120: 3327549.329 | D120: 19.2 | E120: 0 | F120: 0
A121: FALSE | B121: 4910147.177 | D121: 19.4 | E121: 0 | F121: 0
A122: FALSE | B122: 7245434.454 | D122: 19.6 | E122: 0 | F122: 0
A123: FALSE | B123: 10691393.06 | D123: 19.8 | E123: 0 | F123: 0
A124: FALSE | B124: 15776262.41 | D124: 20 | E124: 0 | F124: 0

Sheet 2.3
C2: Εφαρμογή 2.3: Επίδραση ηλιακής ακτινοβολίας σε φωτοβολταικό πλαίσιο
C5: Input
C7: R_s | D7: 0.005 | E7: Ω
C8: R_sh | D8: 6.6 | E8: Ω
C9: A_cell | D9: 150 | E9: cm^2
C10: I_o | D10: =10^-10 -> 1e-10 | E10: A
C11: J_ph_stc | D11: =1.369*10^17 -> 1.369e+17 | E11: (1/s)*(1/cm^2)
C12: qe | D12: =1.6*10^-19 -> 1.6e-19 | E12: C
C13: k | D13: =1.38*10^-23 -> 1.38e-23 | E13: J/K
C14: T_stc | D14: 298 | E14: K
C15: G_stc | D15: 1000 | E15: W/m^2
C16: N_s | D16: 20
C17: N_p | D17: 2
C18: G | D18: 800 | E18: W/m^2
C19: I_i (J_ph) | D19: =$D$11*$D$12*$D$9 -> 3.2856 | E19: A
C20: I_i (G) | D20: =$D$19*($D$18/$D$15) -> 2.62848 | E20: A
C22: Output
A24: F | C24: V_panel (Volts) | D24: I_panel (A) | E24: P_panel (W)
A25: =$D25-$D$17*($D$20-$D$10*(EXP($D$12*(($C25/$D$16)+($D25/$D$17)*$D$7)/($D$13*$D$14))-1)-(($C25/$D$16)+($D25/$D$17)*$D$7)/$D$8) -> 9.999997843e-07 | C25: 0 | D25: 5.252981468 | E25: =D25*C25 -> 0
A26: 9.999996831e-07 | C26: =C25+0.2 -> 0.2 | D26: 5.249953459 | E26: =D26*C26 -> 1.049990692
A27: 9.99999533e-07 | C27: =C26+0.2 -> 0.4 | D27: 5.24692545 | E27: 2.09877018
A28: 9.999993145e-07 | C28: 0.6 | D28: 5.24389744 | E28: 3.146338464
A29: 9.999989929e-07 | C29: 0.8 | D29: 5.240869431 | E29: 4.192695545
A30: 9.999985195e-07 | C30: 1 | D30: 5.237841421 | E30: 5.237841421
A31: 9.999978241e-07 | C31: 1.2 | D31: 5.234813411 | E31: 6.281776093
A32: 9.999968027e-07 | C32: 1.4 | D32: 5.2317854 | E32: 7.32449956
A33: 9.99995299e-07 | C33: 1.6 | D33: 5.228757389 | E33: 8.366011822
A34: 9.99993091e-07 | C34: 1.8 | D34: 5.225729376 | E34: 9.406312877
A35: 9.999898465e-07 | C35: 2 | D35: 5.222701362 | E35: 10.44540272
A36: 9.999850787e-07 | C36: 2.2 | D36: 5.219673345 | E36: 11.48328136
A37: 9.999780719e-07 | C37: 2.4 | D37: 5.216645324 | E37: 12.51994878
A38: 9.999677753e-07 | C38: 2.6 | D38: 5.213617298 | E38: 13.55540498
A39: 9.999526451e-07 | C39: 2.8 | D39: 5.210589265 | E39: 14.58964994
A40: 9.99930414e-07 | C40: 3 | D40: 5.207561219 | E40: 15.62268366
A41: 9.998977477e-07 | C41: 3.2 | D41: 5.204533156 | E41: 16.6545061
A42: 9.998497505e-07 | C42: 3.4 | D42: 5.201505067 | E42: 17.68511723
A43: 9.997792292e-07 | C43: 3.6 | D43: 5.198476941 | E43: 18.71451699
A44: 9.996756161e-07 | C44: 3.8 | D44: 5.195448758 | E44: 19.74270528
A45: 9.995233885e-07 | C45: 4 | D45: 5.192420493 | E45: 20.76968197
A46: 9.992997416e-07 | C46: 4.2 | D46: 5.189392107 | E46: 21.79544685
A47: 9.989711796e-07 | C47: 4.4 | D47: 5.186363542 | E47: 22.81999958
A48: 9.984884981e-07 | C48: 4.6 | D48: 5.183334712 | E48: 23.84333967
A49: 9.977794226e-07 | C49: 4.8 | D49: 5.180305492 | E49: 24.86546636
A50: 9.967378025e-07 | C50: 5 | D50: 5.177275697 | E50: 25.88637848
A51: 9.952077216e-07 | C51: 5.2 | D51: 5.174245053 | E51: 26.90607427
A52: 9.929601941e-07 | C52: 5.4 | D52: 5.171213157 | E52: 27.92455105
A53: 9.896589166e-07 | C53: 5.6 | D53: 5.168179414 | E53: 28.94180472
A54: 9.848100131e-07 | C54: 5.8 | D54: 5.165142947 | E54: 29.95782909
A55: 9.776882273e-07 | C55: 6 | D55: 5.162102461 | E55: 30.97261477
A56: 9.672285959e-07 | C56: 6.2 | D56: 5.159056047 | E56: 31.98614749
A57: =$D57-$D$17*($D$20-$D$10*(EXP($D$12*(($C57/$D$16)+($D57/$D$17)*$D$7)/($D$13*$D$14))-1)-(($C57/$D$16)+($D57/$D$17)*$D$7)/$D$8) -> 9.51867448e-07 | C57: 6.4 | D57: 5.156000887 | E57: 32.99840568
A58: 9.293091034e-07 | C58: 6.6 | D58: 5.152932826 | E58: 34.00935665
A59: 8.961836366e-07 | C59: 6.8 | D59: 5.149845734 | E59: 35.01895099
A60: 8.47545083e-07 | C60: 7 | D60: 5.14673057 | E60: 36.02711399
A61: 7.761362211e-07 | C61: 7.2 | D61: 5.143573995 | E61: 37.03373277
A62: 6.713123479e-07 | C62: 7.4 | D62: 5.140356336 | E62: 38.03863689
A63: 5.174682443e-07 | C63: 7.6 | D63: 5.137048575 | E63: 39.04156917
A64: 2.917438797e-07 | C64: 7.8 | D64: 5.133607914 | E64: 40.04214173
A65: -3.931097936e-08 | C65: 8 | D65: 5.129971235 | E65: 41.03976988
A66: -5.245621733e-07 | C66: 8.2 | D66: 5.12604547 | E66: 42.03357285
A67: 5.921396706e-11 | C67: 8.4 | D67: 5.121694643 | E67: 43.022235
A68: 1.606226263e-10 | C68: 8.6 | D68: 5.116715103 | E68: 44.00374989
A69: 3.948308347e-10 | C69: 8.8 | D69: 5.110809607 | E69: 44.97512454
A70: 9.207514751e-10 | C70: 9 | D70: 5.103539756 | E70: 45.9318578
A71: 2.07946016e-09 | C71: 9.2 | D71: 5.094260691 | E71: 46.86719835
A72: 4.593060154e-09 | C72: 9.4 | D72: 5.082025159 | E72: 47.7710365
A73: 9.968148973e-09 | C73: 9.6 | D73: 5.065444493 | E73: 48.62826713
A74: 2.125628029e-08 | C74: 9.8 | D74: 5.042488892 | E74: 49.41639114
A75: 4.441245949e-08 | C75: 10 | D75: 5.010204198 | E75: 50.10204198
A76: 9.024771774e-08 | C76: 10.2 | D76: 4.964317987 | E76: 50.63604347
A77: 1.758103609e-07 | C77: 10.4 | D77: 4.898707858 | E77: 50.94656172
A78: 3.188545232e-07 | C78: 10.6 | D78: 4.804716436 | E78: 50.92999422
A79: 5.021928136e-07 | C79: 10.8 | D79: 4.670333885 | E79: 50.43960596
A80: 5.340934344e-07 | C80: 11 | D80: 4.479347111 | E80: 49.27281823
A81: 7.894153686e-07 | C81: 11.2 | D81: 4.210689591 | E81: 47.15972341
A82: -9.132566614e-08 | C82: 11.4 | D82: 3.838390119 | E82: 43.75764736
A83: -3.10095785e-07 | C83: 11.6 | D83: 3.332638692 | E83: 38.65860882
A84: -3.610448687e-07 | C84: 11.8 | D84: 2.662319281 | E84: 31.41536752
A85: 2.353771689e-08 | C85: 12 | D85: 1.79884725 | E85: 21.58616701
A86: -2.198439731e-07 | C86: 12.2 | D86: 0.7203284995 | E86: 8.788007694
A87: 0.9171579066 | C87: 12.4 | D87: 0 | E87: 0
A88: 3.767265835 | C88: 12.6 | D88: 0 | E88: 0
A89: =$D89-$D$17*($D$20-$D$10*(EXP($D$12*(($C89/$D$16)+($D89/$D$17)*$D$7)/($D$13*$D$14))-1)-(($C89/$D$16)+($D89/$D$17)*$D$7)/$D$8) -> 7.971454489 | C89: 12.8 | D89: 0 | E89: 0
A90: 14.17372971 | C90: 13 | D90: 0 | E90: =D90*C90 -> 0
A91: 23.3243889 | C91: =C90+0.2 -> 13.2 | D91: 0 | E91: 0
A92: 36.82569446 | C92: 13.4 | D92: 0 | E92: 0
A93: 56.74683003 | C93: 13.6 | D93: 0 | E93: 0
A94: 86.14109067 | C94: 13.8 | D94: 0 | E94: 0
A95: 129.5139299 | C95: 14 | D95: 0 | E95: 0
A96: 193.5136119 | C96: 14.2 | D96: 0 | E96: 0
A97: 287.9503399 | C97: 14.4 | D97: 0 | E97: 0
A98: 427.3000862 | C98: 14.6 | D98: 0 | E98: 0
A99: 632.9236498 | C99: 14.8 | D99: 0 | E99: 0
A100: 936.341105 | C100: 15 | D100: 0 | E100: 0
A101: 1384.063591 | C101: 15.2 | D101: 0 | E101: 0
A102: 2044.723118 | C102: 15.4 | D102: 0 | E102: 0
A103: 3019.593336 | C103: 15.6 | D103: 0 | E103: 0
A104: 4458.114021 | C104: 15.8 | D104: 0 | E104: 0
A105: 6580.79906 | C105: 16 | D105: 0 | E105: 0
A106: 9713.039571 | C106: 16.2 | D106: 0 | E106: 0
A107: 14334.9839 | C107: 16.4 | D107: 0 | E107: 0
A108: 21155.14072 | C108: 16.6 | D108: 0 | E108: 0
A109: 31218.9881 | C109: 16.8 | D109: 0 | E109: 0
A110: 46069.23733 | C110: 17 | D110: 0 | E110: 0
A111: 67982.31899 | C111: 17.2 | D111: 0 | E111: 0
A112: 100317.3425 | C112: 17.4 | D112: 0 | E112: 0
A113: 148031.0221 | C113: 17.6 | D113: 0 | E113: 0
A114: 218437.5042 | C114: 17.8 | D114: 0 | E114: 0
A115: 322329.5699 | C115: 18 | D115: 0 | E115: 0
A116: 475633.0877 | C116: 18.2 | D116: 0 | E116: 0
A117: 701848.3281 | C117: 18.4 | D117: 0 | E117: 0
A118: 1035652.378 | C118: 18.6 | D118: 0 | E118: 0
A119: 1528214.877 | C119: 18.8 | D119: 0 | E119: 0
A120: 2255041.933 | C120: 19 | D120: 0 | E120: 0
A121: 3327550.644 | C121: 19.2 | D121: 0 | E121: 0
A122: 4910148.491 | C122: 19.4 | D122: 0 | E122: 0
A123: 7245435.768 | C123: 19.6 | D123: 0 | E123: 0
A124: 10691394.37 | C124: 19.8 | D124: 0 | E124: 0
A125: 15776263.73 | C125: 20 | D125: 0 | E125: 0

Sheet 2.3 STC values
B2: V (Volts) | C2: I (A) | D2: P (W)
B3: 0 | C3: 6.566225586 | D3: 0
B4: 0.2 | C4: 6.563197577 | D4: 1.312639515
B5: 0.4 | C5: 6.560169568 | D5: 2.624067827
B6: 0.6 | C6: 6.557141558 | D6: 3.934284935
B7: 0.8 | C7: 6.554113549 | D7: 5.243290839
B8: 1 | C8: 6.551085539 | D8: 6.551085539
B9: 1.2 | C9: 6.548057528 | D9: 7.857669034
B10: 1.4 | C10: 6.545029518 | D10: 9.163041325
B11: 1.6 | C11: 6.542001506 | D11: 10.46720241
B12: 1.8 | C12: 6.538973493 | D12: 11.77015229
B13: 2 | C13: 6.535945478 | D13: 13.07189096
B14: 2.2 | C14: 6.53291746 | D14: 14.37241841
B15: 2.4 | C15: 6.529889438 | D15: 15.67173465
B16: 2.6 | C16: 6.526861409 | D16: 16.96983966
B17: 2.8 | C17: 6.523833372 | D17: 18.26673344
B18: 3 | C18: 6.520805322 | D18: 19.56241596
B19: 3.2 | C19: 6.517777251 | D19: 20.8568872
B20: 3.4 | C20: 6.514749152 | D20: 22.15014712
B21: 3.6 | C21: 6.511721009 | D21: 23.44219563
B22: 3.8 | C22: 6.508692803 | D22: 24.73303265
B23: 4 | C23: 6.505664504 | D23: 26.02265802
B24: 4.2 | C24: 6.502636066 | D24: 27.31107148
B25: 4.4 | C25: 6.499607425 | D25: 28.59827267
B26: 4.6 | C26: 6.496578484 | D26: 29.88426103
B27: 4.8 | C27: 6.4935491 | D27: 31.16903568
B28: 5 | C28: 6.490519063 | D28: 32.45259531
B29: 5.2 | C29: 6.487488062 | D29: 33.73493792
B30: 5.4 | C30: 6.484455639 | D30: 35.01606045
B31: 5.6 | C31: 6.481421119 | D31: 36.29595827
B32: 5.8 | C32: 6.478383505 | D32: 37.57462433
B33: 6 | C33: 6.475341327 | D33: 38.85204796
B34: 6.2 | C34: 6.472292417 | D34: 40.12821298
B35: 6.4 | C35: 6.469233575 | D35: 41.40309488
B36: 6.6 | C36: 6.466160082 | D36: 42.67665654
B37: 6.8 | C37: 6.463064979 | D37: 43.94884185
B38: 7 | C38: 6.459937995 | D38: 45.21956597
B39: 7.2 | C39: 6.456763985 | D39: 46.48870069
B40: 7.4 | C40: 6.453520608 | D40: 47.7560525
B41: 7.6 | C41: 6.450174911 | D41: 49.02132932
B42: 7.8 | C42: 6.446678294 | D42: 50.28409069
B43: 8 | C43: 6.442959087 | D43: 51.5436727
B44: 8.2 | C44: 6.438911614 | D44: 52.79907523
B45: 8.4 | C45: 6.434380091 | D45: 54.04879276
B46: 8.6 | C46: 6.429134945 | D46: 55.29056053
B47: 8.8 | C47: 6.422838027 | D47: 56.52097463
B48: 9 | C48: 6.414991607 | D48: 57.73492446
B49: 9.2 | C49: 6.404863845 | D49: 58.92474738
B50: 9.4 | C50: 6.391380324 | D50: 60.07897505
B51: 9.6 | C51: 6.37296727 | D51: 61.18048579
B52: 9.8 | C52: 6.347327138 | D52: 62.20380595
B53: 10 | C53: 6.311122102 | D53: 63.11122102
B54: 10.2 | C54: 6.259537535 | D54: 63.84728286
B55: 10.4 | C55: 6.185706322 | D55: 64.33134575
B56: 10.6 | C56: 6.07995703 | D56: 64.44754452
B57: 10.8 | C57: 5.928992127 | D57: 64.03311497
B58: 11 | C58: 5.715055943 | D58: 62.86561537
B59: 11.2 | C59: 5.41543217 | D59: 60.65284031
B60: 11.4 | C60: 5.002706368 | D60: 57.0308526
B61: 11.6 | C61: 4.446280148 | D61: 51.57684971
B62: 11.8 | C62: 3.715405148 | D62: 43.84178074
B63: 12 | C63: 2.783260687 | D63: 33.39912825
B64: 12.2 | C64: 1.630909957 | D64: 19.89710148
B65: 12.4 | C65: 0.2497136988 | D65: 3.096449865
B66: 12.6 | C66: 0 | D66: 0
B67: 12.8 | C67: 0 | D67: 0
B68: 13 | C68: 0 | D68: 0
B69: 13.2 | C69: 0 | D69: 0
B70: 13.4 | C70: 0 | D70: 0
B71: 13.6 | C71: 0 | D71: 0
B72: 13.8 | C72: 0 | D72: 0
B73: 14 | C73: 0 | D73: 0
B74: 14.2 | C74: 0 | D74: 0
B75: 14.4 | C75: 0 | D75: 0
B76: 14.6 | C76: 0 | D76: 0
B77: 14.8 | C77: 0 | D77: 0
B78: 15 | C78: 0 | D78: 0
B79: 15.2 | C79: 0 | D79: 0
B80: 15.4 | C80: 0 | D80: 0
B81: 15.6 | C81: 0 | D81: 0
B82: 15.8 | C82: 0 | D82: 0
B83: 16 | C83: 0 | D83: 0
B84: 16.2 | C84: 0 | D84: 0
B85: 16.4 | C85: 0 | D85: 0
B86: 16.6 | C86: 0 | D86: 0
B87: 16.8 | C87: 0 | D87: 0
B88: 17 | C88: 0 | D88: 0
B89: 17.2 | C89: 0 | D89: 0
B90: 17.4 | C90: 0 | D90: 0
B91: 17.6 | C91: 0 | D91: 0
B92: 17.8 | C92: 0 | D92: 0
B93: 18 | C93: 0 | D93: 0
B94: 18.2 | C94: 0 | D94: 0
B95: 18.4 | C95: 0 | D95: 0
B96: 18.6 | C96: 0 | D96: 0
B97: 18.8 | C97: 0 | D97: 0
B98: 19 | C98: 0 | D98: 0
B99: 19.2 | C99: 0 | D99: 0
B100: 19.4 | C100: 0 | D100: 0
B101: 19.6 | C101: 0 | D101: 0
B102: 19.8 | C102: 0 | D102: 0
B103: 20 | C103: 0 | D103: 0

Sheet 2.4
D2: Εφαρμογή 2.4: Επίδραση θερμοκρασίας σε φωτοβολταικό πλαίσιο
D5: Input
D7: R_s | E7: 0.005 | F7: Ω
D8: R_sh | E8: 6.6 | F8: Ω
D9: A_cell | E9: 150 | F9: cm^2
D10: I_o | E10: =10^-10 -> 1e-10 | F10: A
D11: J_ph_stc | E11: =1.369*10^17 -> 1.369e+17 | F11: (1/s)*(1/cm^2)
D12: qe | E12: =1.6*10^-19 -> 1.6e-19 | F12: C
D13: k | E13: =1.38*10^-23 -> 1.38e-23 | F13: J/K
D14: T_stc | E14: 298 | F14: K
D15: G_stc | E15: 1000 | F15: W/m^2
D16: N_s | E16: 20
D17: N_p | E17: 2
D18: T | E18: 25 | F18: Celcius
D19: a_v | E19: -0.0038 | F19: 1/k
D20: a_I | E20: 0.0004 | F20: 1/k
D21: I_i(J_ph) | E21: =$E$11*$E$12*$E$9 -> 3.2856 | F21: A
D24: Output
B26: F | D26: V_STC (Volts) | E26: I_STC (A) | F26: P_STC (W) | H26: V_panel (Volts) | I26: I_panel (A) | J26: P_panel (W)
A27: =AND(E27>0,E28=0) -> FALSE | B27: =$E27-$E$17*($E$21-$E$10*(EXP($E$12*(($D27/$E$16)+($E27/$E$17)*$E$7)/($E$13*$E$14))-1)-(($D27/$E$16)+($E27/$E$17)*$E$7)/$E$8) -> 6.571197716e-06 | D27: 0 | E27: 6.566232153 | F27: =E27*D27 -> 0 | H27: =$D27*(1+$E$19*($E$18+273.15-$E$14)) -> 0 | I27: =$E27*(1+$E$20*($E$18+273.15-$E$14)) -> 6.566626127 | J27: =$I27*$H27 -> 0
A28: =AND(E28>0,E29=0) -> FALSE | B28: 6.568166386e-06 | D28: 0.2 | E28: 6.56320414 | F28: =E28*D28 -> 1.312640828 | H28: =$D28*(1+$E$19*($E$18+273.15-$E$14)) -> 0.199886 | I28: =$E28*(1+$E$20*($E$18+273.15-$E$14)) -> 6.563597933 | J28: =$I28*$H28 -> 1.311971336
A29: FALSE | B29: 6.565134597e-06 | D29: 0.4 | E29: 6.560176128 | F29: =E29*D29 -> 2.624070451 | H29: 0.399772 | I29: 6.560569739 | J29: 2.622732086
A30: FALSE | B30: 6.562102142e-06 | D30: 0.6 | E30: 6.557148116 | F30: 3.934288869 | H30: 0.599658 | I30: 6.557541544 | J30: 3.932282247
A31: FALSE | B31: 6.559068727e-06 | D31: 0.8 | E31: 6.554120103 | F31: 5.243296082 | H31: 0.799544 | I31: 6.55451335 | J31: 5.240621822
A32: FALSE | B32: 6.556033928e-06 | D32: 1 | E32: 6.55109209 | F32: 6.55109209 | H32: 0.99943 | I32: 6.551485155 | J32: 6.547750809
A33: FALSE | B33: 6.55299712e-06 | D33: 1.2 | E33: 6.548064077 | F33: 7.857676892 | H33: 1.199316 | I33: 6.54845696 | J33: 7.853669208
A34: FALSE | B34: 6.549957424e-06 | D34: 1.4 | E34: 6.545036063 | F34: 9.163050488 | H34: 1.399202 | I34: 6.545428765 | J34: 9.158377018
A35: FALSE | B35: 6.546913556e-06 | D35: 1.6 | E35: 6.542008048 | F35: 10.46721288 | H35: 1.599088 | I35: 6.542400568 | J35: 10.46187424
A36: FALSE | B36: 6.543863678e-06 | D36: 1.8 | E36: 6.538980032 | F36: 11.77016406 | H36: 1.798974 | I36: 6.53937237 | J36: 11.76416087
A37: FALSE | B37: 6.540805139e-06 | D37: 2 | E37: 6.535952013 | F37: 13.07190403 | H37: 1.99886 | I37: 6.536344171 | J37: 13.06523691
A38: FALSE | B38: 6.537734126e-06 | D38: 2.2 | E38: 6.532923992 | F38: 14.37243278 | H38: 2.198746 | I38: 6.533315968 | J38: 14.36510235
A39: FALSE | B39: 6.534645165e-06 | D39: 2.4 | E39: 6.529895967 | F39: 15.67175032 | H39: 2.398632 | I39: 6.530287761 | J39: 15.66375719
A40: FALSE | B40: 6.531530397e-06 | D40: 2.6 | E40: 6.526867936 | F40: 16.96985663 | H40: 2.598518 | I40: 6.527259548 | J40: 16.96120143
A41: FALSE | B41: 6.528378539e-06 | D41: 2.8 | E41: 6.523839896 | F41: 18.26675171 | H41: 2.798404 | I41: 6.524231326 | J41: 18.25743504
A42: FALSE | B42: 6.525173424e-06 | D42: 3 | E42: 6.520811842 | F42: 19.56243553 | H42: 2.99829 | I42: 6.521203091 | J42: 19.55245801
A43: FALSE | B43: 6.521891894e-06 | D43: 3.2 | E43: 6.517783768 | F43: 20.85690806 | H43: 3.198176 | I43: 6.518174835 | J43: 20.84627032
A44: FALSE | B44: 6.518500817e-06 | D44: 3.4 | E44: 6.514755665 | F44: 22.15016926 | H44: 3.398062 | I44: 6.515146551 | J44: 22.13887192
A45: FALSE | B45: 6.514952819e-06 | D45: 3.6 | E45: 6.511727519 | F45: 23.44221907 | H45: 3.597948 | I45: 6.512118223 | J45: 23.43026274
A46: FALSE | B46: 6.511180271e-06 | D46: 3.8 | E46: 6.508699309 | F46: 24.73305738 | H46: 3.797834 | I46: 6.509089831 | J46: 24.72044267
A47: FALSE | B47: 6.507086704e-06 | D47: 4 | E47: 6.505671006 | F47: 26.02268402 | H47: 3.99772 | I47: 6.506061346 | J47: 26.00941157
A48: FALSE | B48: 6.502534694e-06 | D48: 4.2 | E48: 6.502642564 | F48: 27.31109877 | H48: 4.197606 | I48: 6.503032723 | J48: 27.29716917
A49: FALSE | B49: 6.497328745e-06 | D49: 4.4 | E49: 6.499613918 | F49: 28.59830124 | H49: 4.397492 | I49: 6.500003895 | J49: 28.58371513
A50: FALSE | B50: 6.491191129e-06 | D50: 4.6 | E50: 6.496584971 | F50: 29.88429086 | H50: 4.597378 | I50: 6.496974766 | J50: 29.86904885
A51: FALSE | B51: 6.483727925e-06 | D51: 4.8 | E51: 6.493555579 | F51: 31.16906678 | H51: 4.797264 | I51: 6.493945192 | J51: 31.15316949
A52: =AND(E52>0,E53=0) -> FALSE | B52: 6.474381352e-06 | D52: 5 | E52: 6.490525532 | F52: 32.45262766 | H52: 4.99715 | I52: 6.490914964 | J52: 32.43607571
A53: FALSE | B53: 6.462363086e-06 | D53: 5.2 | E53: 6.487494519 | F53: 33.7349715 | H53: 5.197036 | I53: 6.487883769 | J53: 33.71776551
A54: FALSE | B54: 6.446561309e-06 | D54: 5.4 | E54: 6.484462081 | F54: 35.01609524 | H54: 5.396922 | I54: 6.484851148 | J54: 34.99823583
A55: FALSE | B55: 6.42541158e-06 | D55: 5.6 | E55: 6.481427539 | F55: 36.29599422 | H55: 5.596808 | I55: 6.481816425 | J55: 36.27748202
A56: FALSE | B56: 6.396718464e-06 | D56: 5.8 | E56: 6.478389897 | F56: 37.5746614 | H56: 5.796694 | I56: 6.4787786 | J56: 37.55549704
A57: FALSE | B57: 6.357410468e-06 | D57: 6 | E57: 6.47534768 | F57: 38.85208608 | H57: 5.99658 | I57: 6.4757362 | J57: 38.83227018
A58: FALSE | B58: 6.303206084e-06 | D58: 6.2 | E58: 6.472298715 | F58: 40.12825203 | H58: 6.196466 | I58: 6.472687053 | J58: 40.10778525
A59: FALSE | B59: =$E59-$E$17*($E$21-$E$10*(EXP($E$12*(($D59/$E$16)+($E59/$E$17)*$E$7)/($E$13*$E$14))-1)-(($D59/$E$16)+($E59/$E$17)*$E$7)/$E$8) -> 6.228163434e-06 | D59: 6.4 | E59: 6.469239798 | F59: 41.40313471 | H59: 6.396352 | I59: 6.469627953 | J59: 41.38201769
A60: FALSE | B60: 6.124081902e-06 | D60: 6.6 | E60: 6.466166202 | F60: 42.67669693 | H60: 6.596238 | I60: 6.466554172 | J60: 42.65493036
A61: FALSE | B61: 5.979724678e-06 | D61: 6.8 | E61: 6.463070954 | F61: 43.94888249 | H61: 6.796124 | I61: 6.463458738 | J61: 43.92646705
A62: FALSE | B62: 5.779844076e-06 | D62: 7 | E62: 6.45994377 | F62: 45.21960639 | H62: 6.99601 | I62: 6.460331367 | J62: 45.19654285
A63: FALSE | B63: 5.504034704e-06 | D63: 7.2 | E63: 6.456769485 | F63: 46.48874029 | H63: 7.195896 | I63: 6.457156891 | J63: 46.46502944
A64: FALSE | B64: 5.125551232e-06 | D64: 7.4 | E64: 6.45352573 | F64: 47.7560904 | H64: 7.395782 | I64: 6.453912941 | J64: 47.73173316
A65: FALSE | B65: 4.610490739e-06 | D65: 7.6 | E65: 6.450179518 | F65: 49.02136434 | H65: 7.595668 | I65: 6.450566529 | J65: 48.99636176
A66: FALSE | B66: 3.918332932e-06 | D66: 7.8 | E66: 6.446682209 | F66: 50.28412123 | H66: 7.795554 | I66: 6.44706901 | J66: 50.25847461
A67: FALSE | B67: 3.00614055e-06 | D67: 8 | E67: 6.442962091 | F67: 51.54369673 | H67: 7.99544 | I67: 6.443348669 | J67: 51.51740768
A68: FALSE | B68: 1.841577046e-06 | D68: 8.2 | E68: 6.438913455 | F68: 52.79909033 | H68: 8.195326 | I68: 6.43929979 | J68: 52.77216099
A69: FALSE | B69: 4.360931554e-07 | D69: 8.4 | E69: 6.43438053 | F69: 54.04879645 | H69: 8.395212 | I69: 6.434766593 | J69: 54.02122972
A70: FALSE | B70: -1.076953104e-06 | D70: 8.6 | E70: 6.429133877 | F70: 55.29055134 | H70: 8.595098 | I70: 6.429519625 | J70: 55.26235127
A71: FALSE | B71: -2.265448222e-06 | D71: 8.8 | E71: 6.422835781 | F71: 56.52095487 | H71: 8.794984 | I71: 6.423221151 | J71: 56.49212725
A72: FALSE | B72: -2.006299254e-06 | D72: 9 | E72: 6.414989639 | F72: 57.73490675 | H72: 8.99487 | I72: 6.415374538 | J72: 57.70545997
A73: FALSE | B73: 2.374974581e-06 | D73: 9.2 | E73: 6.404866284 | F73: 58.92476981 | H73: 9.194756 | I73: 6.405250576 | J73: 58.89471617
A74: FALSE | B74: 2.58162852e-06 | D74: 9.4 | E74: 6.391383046 | F74: 60.07900064 | H74: 9.394642 | I74: 6.391766529 | J74: 60.04835829
A75: FALSE | B75: 2.410126321e-08 | D75: 9.6 | E75: 6.372967614 | F75: 61.1804891 | H75: 9.594528 | I75: 6.373349992 | J75: 61.14928495
A76: FALSE | B76: 1.380530392e-07 | D76: 9.8 | E76: 6.347327953 | F76: 62.20381394 | H76: 9.794414 | I76: 6.347708792 | J76: 62.17208786
A77: FALSE | B77: 5.392815998e-07 | D77: 10 | E77: 6.311124059 | F77: 63.11124059 | H77: 9.9943 | I77: 6.311502726 | J77: 63.0790517
A78: FALSE | B78: 1.853577016e-06 | D78: 10.2 | E78: 6.25954231 | F78: 63.84733156 | H78: 10.194186 | I78: 6.259917882 | J78: 63.81476724
A79: FALSE | B79: 5.955674641e-06 | D79: 10.4 | E79: 6.185712191 | F79: 64.33140679 | H79: 10.394072 | I79: 6.186083334 | J79: 64.29859557
A80: FALSE | B80: -2.531342949e-07 | D80: 10.6 | E80: 6.079956909 | F80: 64.44754323 | H80: 10.593958 | I80: 6.080321706 | J80: 64.41467278
A81: FALSE | B81: -1.042365825e-06 | D81: 10.8 | E81: 5.928991454 | F81: 64.03310771 | H81: 10.793844 | I81: 5.929347194 | J81: 64.00044863
A82: FALSE | B82: -3.958649888e-06 | D82: 11 | E82: 5.715053012 | F82: 62.86558313 | H82: 10.99373 | I82: 5.715395915 | J82: 62.83351953
A83: FALSE | B83: 4.95536864e-07 | D83: 11.2 | E83: 5.415434277 | F83: 60.6528639 | H83: 11.193616 | I83: 5.415759203 | J83: 60.62192887
A84: FALSE | B84: 1.827607453e-06 | D84: 11.4 | E84: 5.002708071 | F84: 57.03087201 | H84: 11.393502 | I84: 5.003008234 | J84: 57.00178432
A85: FALSE | B85: 4.711052862e-06 | D85: 11.6 | E85: 4.446284263 | F85: 51.57689745 | H85: 11.593388 | I85: 4.44655104 | J85: 51.55059147
A86: FALSE | B86: -3.63916099e-07 | D86: 11.8 | E86: 3.715405028 | F86: 43.84177933 | H86: 11.793274 | I86: 3.715627953 | J86: 43.81941853
A87: FALSE | B87: 2.329671135e-06 | D87: 12 | E87: 2.783262505 | F87: 33.39915006 | H87: 11.99316 | I87: 2.783429501 | J87: 33.38211535
A88: FALSE | B88: 1.283216289e-07 | D88: 12.2 | E88: 1.630910576 | F88: 19.89710902 | H88: 12.193046 | I88: 1.63100843 | J88: 19.88696082
A89: =AND(E89>0,E90=0) -> TRUE | B89: -1.771561833e-08 | D89: 12.4 | E89: 0.2497137912 | F89: 3.096451011 | H89: 12.392932 | I89: 0.2497287741 | J89: 3.094871716
A90: =AND(E90>0,E91=0) -> FALSE | B90: 2.453025835 | D90: 12.6 | E90: 0 | F90: 0 | H90: 12.592818 | I90: 0 | J90: 0
A91: FALSE | B91: =$E91-$E$17*($E$21-$E$10*(EXP($E$12*(($D91/$E$16)+($E91/$E$17)*$E$7)/($E$13*$E$14))-1)-(($D91/$E$16)+($E91/$E$17)*$E$7)/$E$8) -> 6.657214489 | D91: 12.8 | E91: 0 | F91: 0 | H91: 12.792704 | I91: 0 | J91: 0
A92: =AND(E92>0,E93=0) -> FALSE | B92: 12.85948971 | D92: 13 | E92: 0 | F92: 0 | H92: =$D92*(1+$E$19*($E$18+273.15-$E$14)) -> 12.99259 | I92: =$E92*(1+$E$20*($E$18+273.15-$E$14)) -> 0 | J92: =$I92*$H92 -> 0
A93: FALSE | B93: 22.0101489 | D93: 13.2 | E93: 0 | F93: =E93*D93 -> 0 | H93: 13.192476 | I93: 0 | J93: 0
A94: FALSE | B94: 35.51145446 | D94: 13.4 | E94: 0 | F94: 0 | H94: 13.392362 | I94: 0 | J94: 0
A95: FALSE | B95: 55.43259003 | D95: 13.6 | E95: 0 | F95: 0 | H95: 13.592248 | I95: 0 | J95: 0
A96: FALSE | B96: 84.82685067 | D96: 13.8 | E96: 0 | F96: 0 | H96: 13.792134 | I96: 0 | J96: 0
A97: FALSE | B97: 128.1996899 | D97: 14 | E97: 0 | F97: 0 | H97: 13.99202 | I97: 0 | J97: 0
A98: FALSE | B98: 192.1993719 | D98: 14.2 | E98: 0 | F98: 0 | H98: 14.191906 | I98: 0 | J98: 0
A99: FALSE | B99: 286.6360999 | D99: 14.4 | E99: 0 | F99: 0 | H99: 14.391792 | I99: 0 | J99: 0
A100: FALSE | B100: 425.9858462 | D100: 14.6 | E100: 0 | F100: 0 | H100: 14.591678 | I100: 0 | J100: 0
A101: FALSE | B101: 631.6094098 | D101: 14.8 | E101: 0 | F101: 0 | H101: 14.791564 | I101: 0 | J101: 0
A102: FALSE | B102: 935.026865 | D102: 15 | E102: 0 | F102: 0 | H102: 14.99145 | I102: 0 | J102: 0
A103: FALSE | B103: 1382.749351 | D103: 15.2 | E103: 0 | F103: 0 | H103: 15.191336 | I103: 0 | J103: 0
A104: FALSE | B104: 2043.408878 | D104: 15.4 | E104: 0 | F104: 0 | H104: 15.391222 | I104: 0 | J104: 0
A105: FALSE | B105: 3018.279096 | D105: 15.6 | E105: 0 | F105: 0 | H105: 15.591108 | I105: 0 | J105: 0
A106: FALSE | B106: 4456.799781 | D106: 15.8 | E106: 0 | F106: 0 | H106: 15.790994 | I106: 0 | J106: 0
A107: FALSE | B107: 6579.48482 | D107: 16 | E107: 0 | F107: 0 | H107: 15.99088 | I107: 0 | J107: 0
A108: FALSE | B108: 9711.725331 | D108: 16.2 | E108: 0 | F108: 0 | H108: 16.190766 | I108: 0 | J108: 0
A109: FALSE | B109: 14333.66966 | D109: 16.4 | E109: 0 | F109: 0 | H109: 16.390652 | I109: 0 | J109: 0
A110: FALSE | B110: 21153.82648 | D110: 16.6 | E110: 0 | F110: 0 | H110: 16.590538 | I110: 0 | J110: 0
A111: FALSE | B111: 31217.67386 | D111: 16.8 | E111: 0 | F111: 0 | H111: 16.790424 | I111: 0 | J111: 0
A112: FALSE | B112: 46067.92309 | D112: 17 | E112: 0 | F112: 0 | H112: 16.99031 | I112: 0 | J112: 0
A113: FALSE | B113: 67981.00475 | D113: 17.2 | E113: 0 | F113: 0 | H113: 17.190196 | I113: 0 | J113: 0
A114: FALSE | B114: 100316.0282 | D114: 17.4 | E114: 0 | F114: 0 | H114: 17.390082 | I114: 0 | J114: 0
A115: FALSE | B115: 148029.7079 | D115: 17.6 | E115: 0 | F115: 0 | H115: 17.589968 | I115: 0 | J115: 0
A116: FALSE | B116: 218436.1899 | D116: 17.8 | E116: 0 | F116: 0 | H116: 17.789854 | I116: 0 | J116: 0
A117: FALSE | B117: 322328.2556 | D117: 18 | E117: 0 | F117: 0 | H117: 17.98974 | I117: 0 | J117: 0
A118: FALSE | B118: 475631.7734 | D118: 18.2 | E118: 0 | F118: 0 | H118: 18.189626 | I118: 0 | J118: 0
A119: FALSE | B119: 701847.0139 | D119: 18.4 | E119: 0 | F119: 0 | H119: 18.389512 | I119: 0 | J119: 0
A120: FALSE | B120: 1035651.064 | D120: 18.6 | E120: 0 | F120: 0 | H120: 18.589398 | I120: 0 | J120: 0
A121: FALSE | B121: 1528213.563 | D121: 18.8 | E121: 0 | F121: 0 | H121: 18.789284 | I121: 0 | J121: 0
A122: FALSE | B122: 2255040.619 | D122: 19 | E122: 0 | F122: 0 | H122: 18.98917 | I122: 0 | J122: 0
A123: FALSE | B123: 3327549.329 | D123: 19.2 | E123: 0 | F123: 0 | H123: 19.189056 | I123: 0 | J123: 0
A124: FALSE | B124: 4910147.177 | D124: 19.4 | E124: 0 | F124: 0 | H124: 19.388942 | I124: 0 | J124: 0
A125: FALSE | B125: 7245434.454 | D125: 19.6 | E125: 0 | F125: 0 | H125: 19.588828 | I125: 0 | J125: 0
A126: FALSE | B126: 10691393.06 | D126: 19.8 | E126: 0 | F126: 0 | H126: 19.788714 | I126: 0 | J126: 0
A127: FALSE | B127: 15776262.41 | D127: 20 | E127: 0 | F127: 0 | H127: 19.9886 | I127: 0 | J127: 0
